bitfinex/quotes_SOLUSD_20241126
["timestamp","ask_amount","ask_price","bid_price","bid_amount"]
[1732624654740,20.0,228.11,228.04,66.70873554]
[1732624655051,4.3834,228.13,228.05,23.776884]
[1732624655552,7.68138882,228.14,228.05,23.776884]
[1732624656044,7.68138882,228.14,228.03,28.162184]
[1732624656252,7.68138882,228.14,228.07,23.776884]
[1732624656544,7.68138882,228.14,228.13,66.70873554]
[1732624657232,4.3813,228.24,228.14,23.776884]
[1732624657423,4.3813,228.24,228.16,42.93185154]
[1732624657922,4.3813,228.24,228.17,42.93185154]
[1732624658133,4.3813,228.24,228.19,42.93185154]
[1732624658442,4.3813,228.24,228.18,23.776884]
[1732624658633,47.31315154,228.24,228.17,42.93185154]
[1732624658830,42.93185154,228.18,228.0,4.3859]
[1732624659039,42.93185154,228.02,227.95,42.93185154]
[1732624659226,11.364,228.12,227.94,42.93185154]
[1732624659227,136.4,228.11,227.94,42.93185154]
[1732624659428,6.364,228.12,227.98,42.93185154]
[1732624659429,42.93185154,228.05,227.98,42.93185154]
[1732624659940,42.93185154,228.06,227.99,42.93185154]
[1732624660136,47.31665154,228.06,227.99,42.93185154]
[1732624660640,47.31625154,228.08,228.0,42.93185154]
[1732624660937,47.31625154,228.08,228.01,23.776884]
[1732624661136,42.93185154,228.04,227.97,42.93185154]
[1732624661444,42.93185154,228.07,227.99,42.93185154]
[1732624661743,156.6529,228.17,227.94,0.78324037]
[1732624661744,4.3841,228.1,227.94,0.78324037]
[1732624661941,20.0,228.13,227.94,0.78324037]
[1732624661942,20.0,228.13,227.96,20.0]
[1732624662131,4.3836,228.12,227.97,24.3865]
[1732624662336,4.3836,228.12,227.98,23.776884]
[1732624662531,4.3833,228.14,228.02,23.776884]
[1732624662736,42.93185154,228.12,228.05,23.776884]
[1732624662930,4.3833,228.14,228.05,66.70873554]
[1732624662931,42.93185154,228.13,228.05,66.70873554]
[1732624663126,42.93185154,228.13,228.06,42.93185154]
[1732624663634,47.31545154,228.13,228.07,23.776884]
[1732624663828,42.93185154,228.12,228.07,23.776884]
[1732624664123,47.31545154,228.13,228.06,23.776884]
[1732624664545,42.93185154,228.14,228.07,42.93185154]
[1732624664850,42.93185154,228.13,228.05,42.93185154]
[1732624665035,42.93185154,228.12,228.06,23.776884]
[1732624665750,47.31555154,228.12,228.05,42.93185154]
[1732624666235,42.93185154,228.09,228.01,62.93185154]
[1732624666433,4.3837,228.12,228.01,20.0]
[1732624666434,42.93185154,228.06,228.01,20.0]
[1732624666646,42.93185154,228.08,228.02,20.0]
[1732624666834,4.3837,228.12,228.02,20.0]
[1732624666835,42.93185154,228.09,228.02,20.0]
[1732624667039,42.93185154,228.09,228.02,62.93185154]
[1732624667344,4.3837,228.12,228.06,42.93185154]
[1732624667938,4.3831,228.15,228.1,42.93185154]
[1732624668447,7.68082227,228.16,228.1,42.93185154]
[1732624668653,12.06372227,228.16,228.11,23.776884]
[1732624668953,7.68082227,228.16,228.11,23.776884]
[1732624669333,12.06372227,228.16,228.11,23.776884]
[1732624669542,12.06372227,228.16,228.1,42.93185154]
[1732624669747,12.06372227,228.16,228.04,4.3851]
[1732624669748,42.93185154,228.13,228.05,66.70873554]
[1732624670176,12.06372227,228.16,228.08,23.776884]
[1732624670177,42.93185154,228.15,228.08,23.776884]
[1732624670532,42.93185154,228.11,228.03,42.93185154]
[1732624670829,42.93185154,228.05,227.97,42.93185154]
[1732624671234,42.93185154,228.06,227.99,42.93185154]
[1732624671647,42.93185154,228.07,228.0,42.93185154]
[1732624671852,47.31655154,228.07,228.0,42.93185154]
[1732624672838,47.31615154,228.09,228.01,66.70873554]
[1732624673151,42.93185154,228.05,227.98,42.93185154]
[1732624673351,42.93185154,228.07,228.0,23.776884]
[1732624673560,42.93185154,228.06,228.0,23.776884]
[1732624673750,42.93185154,228.06,227.99,23.776884]
[1732624674255,42.93185154,228.08,228.01,42.93185154]
[1732624674429,4.3843,228.09,228.04,42.93185154]
[1732624674749,47.31615154,228.09,228.01,42.93185154]
[1732624674956,42.93185154,228.07,227.99,66.70873554]
[1732624675135,42.93185154,228.07,227.99,42.93185154]
[1732624675333,42.93185154,228.05,227.99,42.93185154]
[1732624675644,42.93185154,228.05,227.97,42.93185154]
[1732624675836,42.93185154,227.99,227.91,42.93185154]
[1732624676045,136.4,228.08,227.87,21.6488]
[1732624676046,42.93185154,228.02,227.94,42.93185154]
[1732624676953,4.3857,228.01,227.94,42.93185154]
[1732624677162,42.93185154,228.0,227.92,42.93185154]
[1732624677855,42.93185154,228.0,227.93,23.776884]
[1732624678046,4.3861,227.99,227.93,23.776884]
[1732624678244,4.3861,227.99,227.92,23.776884]
[1732624678436,47.31795154,227.99,227.92,23.776884]
[1732624679954,42.93185154,228.05,227.98,42.93185154]
[1732624680453,10.9615,228.08,227.98,42.93185154]
[1732624680454,4.3851,228.04,227.98,42.93185154]
[1732624680644,42.93185154,228.07,227.96,20.0]
[1732624680832,42.93185154,228.05,227.97,42.93185154]
[1732624681033,42.93185154,228.03,227.96,42.93185154]
[1732624681436,42.93185154,228.03,227.94,42.93185154]
[1732624681759,42.93185154,227.97,227.89,42.93185154]
[1732624682143,42.93185154,227.99,227.91,42.93185154]
[1732624682334,4.3863,227.98,227.93,42.93185154]
[1732624683058,4.3861,228.0,227.94,66.70873554]
[1732624683466,4.3857,228.02,227.96,42.93185154]
[1732624683763,42.93185154,228.04,227.96,42.93185154]
[1732624684341,26.4384279,227.98,227.88,26.4384279]
[1732624684638,26.4384279,227.91,227.83,26.4384279]
[1732624685555,6.5825,227.99,227.87,26.4384279]
[1732624685556,26.4384279,227.94,227.87,26.4384279]
[1732624685755,26.4384279,227.92,227.83,26.4384279]
[1732624685945,26.4384279,227.86,227.77,26.4384279]
[1732624686149,26.4384279,227.8,227.73,26.4384279]
[1732624686339,26.4384279,227.78,227.71,26.4384279]
[1732624686544,136.4,227.87,227.69,26.4384279]
[1732624686545,26.4384279,227.76,227.69,26.4384279]
[1732624686940,141.4,227.86,227.68,4.3921]
[1732624686941,26.4384279,227.78,227.71,26.4384279]
[1732624687552,30.8282279,227.8,227.71,26.4384279]
[1732624687850,30.8282279,227.8,227.7,4.3916]
[1732624687851,26.4384279,227.84,227.76,26.4384279]
[1732624688053,26.4384279,227.84,227.7,26.4384279]
[1732624688054,26.4384279,227.86,227.78,26.4384279]
[1732624688251,30.8268279,227.87,227.8,26.4384279]
[1732624688453,4.3871,227.94,227.77,20.0]
[1732624688639,4.3871,227.94,227.85,20.0]
[1732624689038,10.9659,227.98,227.86,23.776884]
[1732624689257,4.3868,227.96,227.86,23.776884]
[1732624689449,43.01112026,227.94,227.87,66.78800426]
[1732624689770,4.3865,227.97,227.87,66.78800426]
[1732624689952,43.01112026,227.96,227.89,23.776884]
[1732624690141,43.01112026,227.94,227.87,43.01112026]
[1732624690550,43.01112026,227.94,227.85,43.01112026]
[1732624690863,43.01112026,227.94,227.79,10.9748]
[1732624690864,43.01112026,227.94,227.86,66.78800426]
[1732624691262,43.01112026,227.89,227.82,43.01112026]
[1732624691442,43.01112026,227.89,227.83,23.776884]
[1732624691642,43.01112026,227.91,227.83,47.40032026]
[1732624691839,4.3877,227.91,227.84,66.78800426]
[1732624692150,43.01112026,227.9,227.84,66.78800426]
[1732624692355,43.01112026,227.91,227.84,23.776884]
[1732624693048,47.39782026,227.96,227.89,43.01112026]
[1732624693242,43.01112026,227.98,227.91,43.01112026]
[1732624693671,43.01112026,227.97,227.9,66.78800426]
[1732624693874,43.01112026,227.97,227.89,66.78800426]
[1732624694165,43.01112026,227.98,227.91,23.776884]
[1732624694368,17.5452,228.05,227.87,43.01112026]
[1732624694369,43.01112026,227.97,227.87,43.01112026]
[1732624694669,43.01112026,227.95,227.88,23.776884]
[1732624696265,43.01112026,227.92,227.84,43.01112026]
[1732624696475,43.01112026,227.93,227.84,43.01112026]
[1732624696677,4.387,227.95,227.83,43.01112026]
[1732624696678,43.01112026,227.91,227.83,43.01112026]
[1732624696857,43.01112026,227.92,227.84,43.01112026]
[1732624697179,43.01112026,227.88,227.8,63.01112026]
[1732624697357,43.01112026,227.85,227.78,43.01112026]
[1732624697559,43.01112026,227.82,227.73,43.01112026]
[1732624697768,43.01112026,227.78,227.69,43.01112026]
[1732624697950,43.01112026,227.74,227.66,43.01112026]
[1732624698285,6.1072,227.9,227.61,6.6651]
[1732624698286,43.01112026,227.73,227.61,6.6651]
[1732624698571,43.01112026,227.74,227.63,4.393]
[1732624698764,136.4,227.84,227.63,43.01112026]
[1732624698765,43.01112026,227.72,227.63,43.01112026]
[1732624698956,43.01112026,227.74,227.66,43.01112026]
[1732624699273,43.01112026,227.74,227.67,43.01112026]
[1732624699573,43.01112026,227.79,227.72,43.01112026]
[1732624699871,43.01112026,227.85,227.77,43.01112026]
[1732624700195,43.01112026,227.85,227.78,43.01112026]
[1732624700366,43.01112026,227.84,227.78,23.776884]
[1732624700552,43.01112026,227.84,227.77,43.01112026]
[1732624700747,43.01112026,227.84,227.78,23.776884]
[1732624701072,43.01112026,227.82,227.69,0.12549]
[1732624701268,43.01112026,227.82,227.73,43.01112026]
[1732624701765,43.01112026,227.8,227.71,43.01112026]
[1732624702069,4.3896,227.81,227.63,43.01112026]
[1732624702070,43.01112026,227.73,227.63,43.01112026]
[1732624702269,43.01112026,227.73,227.61,11.0584]
[1732624702270,43.01112026,227.74,227.66,43.01112026]
[1732624702473,43.01112026,227.76,227.69,43.01112026]
[1732624702773,43.01112026,227.74,227.66,43.01112026]
[1732624702971,43.01112026,227.72,227.64,43.01112026]
[1732624703270,43.01112026,227.73,227.66,43.01112026]
[1732624703463,47.40162026,227.77,227.7,43.01112026]
[1732624703651,43.01112026,227.77,227.69,43.01112026]
[1732624704254,43.01112026,227.8,227.72,43.01112026]
[1732624704482,47.40012026,227.84,227.76,43.01112026]
[1732624704655,4.389,227.84,227.78,43.01112026]
[1732624704855,4.389,227.84,227.76,43.01112026]
[1732624705056,4.389,227.84,227.77,23.776884]
[1732624705285,47.40012026,227.84,227.77,43.01112026]
[1732624705975,43.01112026,227.85,227.78,23.776884]
[1732624706167,47.40002026,227.85,227.77,43.01112026]
[1732624706375,43.01112026,227.81,227.73,43.01112026]
[1732624706566,43.01112026,227.77,227.69,43.01112026]
[1732624706763,43.01112026,227.73,227.65,43.01112026]
[1732624707075,43.01112026,227.76,227.64,15.3749]
[1732624707269,20.0,227.8,227.64,4.3927]
[1732624707578,15.365,227.79,227.62,4.3932]
[1732624708278,43.01112026,227.76,227.67,43.01112026]
[1732624708468,43.01112026,227.75,227.67,43.01112026]
[1732624708678,43.01112026,227.76,227.68,43.01112026]
[1732624708878,43.01112026,227.76,227.69,23.776884]
[1732624709183,43.01112026,227.77,227.69,66.78800426]
[1732624709370,43.01112026,227.78,227.71,43.01112026]
[1732624709574,47.40142026,227.78,227.72,23.776884]
[1732624710072,43.01112026,227.76,227.7,23.776884]
[1732624710284,4.3903,227.78,227.68,23.776884]
[1732624710285,43.01112026,227.74,227.68,23.776884]
[1732624710583,43.01112026,227.72,227.64,47.40392026]
[1732624711155,43.01112026,227.72,227.64,43.01112026]
[1732624711574,4.3915,227.71,227.64,43.01112026]
[1732624711766,43.01112026,227.72,227.64,43.01112026]
[1732624711960,43.01112026,227.72,227.64,47.40382026]
[1732624712258,43.01112026,227.72,227.65,23.776884]
[1732624713383,43.01112026,227.72,227.66,43.01112026]
[1732624713877,43.01112026,227.7,227.62,43.01112026]
[1732624714062,43.01112026,227.66,227.58,43.01112026]
[1732624714260,43.01112026,227.7,227.62,43.01112026]
[1732624714480,53.47782026,227.75,227.68,43.01112026]
[1732624714784,47.40202026,227.75,227.68,43.01112026]
[1732624714976,43.01112026,227.78,227.7,43.01112026]
[1732624716079,4.3903,227.77,227.7,43.01112026]
[1732624716284,43.01112026,227.82,227.75,43.01112026]
[1732624716466,43.01112026,227.84,227.77,43.01112026]
[1732624716659,47.40022026,227.84,227.76,23.776884]
[1732624717358,43.01112026,227.82,227.73,43.01112026]
[1732624717559,43.01112026,227.82,227.74,23.776884]
[1732624717765,43.01112026,227.83,227.75,43.01112026]
[1732624718067,47.40042026,227.83,227.76,23.776884]
[1732624718667,43.01112026,227.83,227.76,66.78800426]
[1732624718866,43.01112026,227.83,227.76,71.17850426]
[1732624719081,47.40032026,227.83,227.76,71.17850426]
[1732624719387,47.40032026,227.83,227.76,28.167384]
[1732624719573,47.40032026,227.83,227.74,43.01112026]
[1732624719778,47.40032026,227.83,227.75,23.776884]
[1732624720964,43.01112026,227.86,227.78,43.01112026]
[1732624721283,43.01112026,227.86,227.75,28.167584]
[1732624721284,43.01112026,227.86,227.79,43.01112026]
[1732624721483,43.01112026,227.86,227.8,23.776884]
[1732624722387,47.39972026,227.86,227.8,23.776884]
[1732624723483,43.01112026,227.82,227.75,23.776884]
[1732624723679,4.3886,227.86,227.75,23.776884]
[1732624723680,43.01112026,227.8,227.75,23.776884]
[1732624723878,43.01112026,227.8,227.73,43.01112026]
[1732624724075,43.01112026,227.76,227.68,4.392]
[1732624724271,47.40182026,227.76,227.68,4.392]
[1732624724464,43.01112026,227.74,227.65,43.01112026]
[1732624724663,43.01112026,227.75,227.67,43.01112026]
[1732624725783,43.01112026,227.77,227.69,66.78800426]
[1732624726173,47.40092026,227.8,227.73,43.01112026]
[1732624727095,43.01112026,227.78,227.7,43.01112026]
[1732624727601,43.01112026,227.78,227.71,23.776884]
[1732624729016,43.01112026,227.75,227.7,23.776884]
[1732624729185,43.01112026,227.71,227.63,43.01112026]
[1732624729380,43.01112026,227.69,227.62,4.3932]
[1732624730233,43.01112026,227.69,227.61,43.01112026]
[1732624730405,43.01112026,227.66,227.58,4.394]
[1732624730584,43.01112026,227.66,227.54,6.3903]
[1732624730585,43.01112026,227.66,227.59,43.01112026]
[1732624730899,43.01112026,227.67,227.59,43.01112026]
[1732624731084,43.01112026,227.68,227.6,43.01112026]
[1732624731283,43.01112026,227.69,227.61,43.01112026]
[1732624731692,43.01112026,227.67,227.59,43.776884]
[1732624731878,43.01112026,227.69,227.62,43.01112026]
[1732624732084,43.01112026,227.7,227.63,23.776884]
[1732624732403,43.01112026,227.68,227.61,23.776884]
[1732624732701,10.9771,227.75,227.57,4.3942]
[1732624732702,47.40402026,227.64,227.57,4.3942]
[1732624733307,47.40372026,227.66,227.58,43.01112026]
[1732624733878,47.40372026,227.66,227.59,23.776884]
[1732624734787,43.01112026,227.66,227.6,43.01112026]
[1732624734986,43.01112026,227.66,227.59,28.170484]
[1732624735393,43.01112026,227.66,227.6,43.01112026]
[1732624735687,43.01112026,227.69,227.62,43.01112026]
[1732624736008,43.01112026,227.69,227.63,23.776884]
[1732624736309,43.01112026,227.71,227.64,43.01112026]
[1732624736602,43.01112026,227.71,227.65,28.169584]
[1732624736803,43.01112026,227.74,227.67,43.01112026]
[1732624737008,43.01112026,227.81,227.65,28.169584]
[1732624737009,43.01112026,227.77,227.7,43.01112026]
[1732624737178,43.01112026,227.77,227.69,43.01112026]
[1732624737381,26.6485,227.82,227.65,28.169584]
[1732624737382,43.01112026,227.78,227.71,43.01112026]
[1732624737582,4.3901,227.79,227.72,23.776884]
[1732624737583,43.01112026,227.79,227.72,23.776884]
[1732624738310,43.01112026,227.77,227.68,43.01112026]
[1732624738610,47.40162026,227.77,227.69,23.776884]
[1732624738809,43.01112026,227.73,227.64,43.01112026]
[1732624739104,4.3905,227.77,227.62,4.3932]
[1732624739105,43.01112026,227.68,227.62,4.3932]
[1732624739402,43.01112026,227.72,227.64,43.01112026]
[1732624739802,43.01112026,227.76,227.69,43.01112026]
[1732624740186,43.01112026,227.78,227.71,66.78800426]
[1732624740387,43.01112026,227.77,227.71,23.776884]
[1732624740584,43.01112026,227.77,227.7,28.168384]
[1732624740785,43.01112026,227.83,227.75,43.01112026]
[1732624740986,26.6452,227.89,227.74,23.776884]
[1732624741208,43.01112026,227.84,227.76,43.01112026]
[1732624741505,43.01112026,227.78,227.73,20.0]
[1732624742711,43.01112026,227.79,227.72,24.3913]
[1732624743008,43.01112026,227.79,227.73,23.776884]
[1732624743409,43.01112026,227.81,227.73,66.78800426]
[1732624743584,43.01112026,227.86,227.79,43.01112026]
[1732624743791,43.01112026,227.88,227.82,23.776884]
[1732624744087,43.01112026,227.9,227.82,66.78800426]
[1732624744406,43.01112026,227.91,227.85,23.776884]
[1732624744589,47.39882026,227.91,227.84,23.776884]
[1732624744910,43.01112026,227.89,227.82,23.776884]
[1732624745091,50.69861624,227.94,227.86,43.01112026]
[1732624745282,50.69861624,227.94,227.87,23.776884]
[1732624745483,43.01112026,227.91,227.85,23.776884]
[1732624746101,43.01112026,227.92,227.85,23.776884]
[1732624746303,43.01112026,227.92,227.86,43.01112026]
[1732624746493,7.68749598,227.94,227.91,66.78800426]
[1732624746810,7.68749598,227.94,227.91,23.776884]
[1732624747112,43.01112026,227.92,227.88,23.776884]
[1732624747295,50.69861624,227.94,227.87,23.776884]
[1732624747998,50.69861624,227.94,227.87,66.78800426]
[1732624748710,50.69861624,227.94,227.87,71.17640426]
[1732624749203,7.68749598,227.94,227.93,43.01112026]
[1732624749511,7.68749598,227.94,227.84,10.9723]
[1732624749512,7.68749598,227.94,227.83,6.5251]
[1732624749718,7.68749598,227.94,227.87,20.0]
[1732624750017,7.68749598,227.94,227.88,23.776884]
[1732624750508,7.68749598,227.94,227.88,24.43498792]
[1732624750704,7.68749598,227.94,227.91,23.776884]
[1732624750905,7.68749598,227.94,227.92,43.01112026]
[1732624751212,7.68749598,227.94,227.91,23.776884]
[1732624751594,7.68749598,227.94,227.91,66.78800426]
[1732624751818,7.68749598,227.94,227.93,23.776884]
[1732624752294,7.68749598,227.94,227.92,43.01112026]
[1732624752495,7.68749598,227.94,227.93,23.776884]
[1732624752692,59.22132026,228.09,227.96,20.0]
[1732624752897,43.01112026,228.1,228.03,43.01112026]
[1732624753105,4.3836,228.12,228.0,43.01112026]
[1732624753310,4.3836,228.12,227.91,17.99065211]
[1732624753311,47.2609,228.12,227.92,4.3874]
[1732624753513,136.4,228.11,227.93,23.776884]
[1732624753698,5.0,228.1,227.93,23.776884]
[1732624754101,20.0,228.08,227.93,23.776884]
[1732624754316,43.01112026,228.0,227.93,28.164084]
[1732624755095,43.01112026,228.05,227.99,23.776884]
[1732624755296,47.39572026,228.07,228.0,43.01112026]
[1732624755502,47.39572026,228.07,228.01,23.776884]
[1732624755810,43.01112026,228.06,228.01,23.776884]
[1732624756014,16.2102,228.16,228.0,0.25098]
[1732624756191,4.3825,228.18,228.03,23.776884]
[1732624756396,21.938018,228.19,228.11,23.776884]
[1732624757100,43.01112026,228.2,228.13,43.01112026]
[1732624757302,47.39292026,228.22,228.15,43.01112026]
[1732624757617,47.39292026,228.22,228.14,43.01112026]
[1732624757618,43.01112026,228.21,228.14,43.01112026]
[1732624758117,43.01112026,228.21,228.15,23.776884]
[1732624758419,47.39302026,228.21,228.15,23.776884]
[1732624758597,43.01112026,228.18,228.11,23.776884]
[1732624759014,43.01112026,228.14,228.07,43.01112026]
[1732624759217,43.01112026,228.14,228.06,23.776884]
[1732624759623,43.01112026,228.12,228.05,43.01112026]
[1732624759920,43.01112026,228.11,228.03,43.01112026]
[1732624760098,43.01112026,228.13,228.06,43.01112026]
[1732624760299,43.01112026,228.12,228.04,43.01112026]
[1732624760495,43.01112026,228.13,228.06,43.01112026]
[1732624760697,43.01112026,228.14,228.07,43.01112026]
[1732624761103,43.01112026,228.16,228.08,66.78800426]
[1732624761321,43.01112026,228.21,228.13,43.01112026]
[1732624761502,43.01112026,228.21,228.14,23.776884]
[1732624761704,43.01112026,228.21,228.14,66.78800426]
[1732624762009,4.3817,228.22,228.15,43.01112026]
[1732624762398,43.01112026,228.17,228.1,43.01112026]
[1732624762598,4.3817,228.22,228.12,43.01112026]
[1732624762599,43.01112026,228.19,228.12,43.01112026]
[1732624762825,43.01112026,228.2,228.13,23.776884]
[1732624763001,43.01112026,228.19,228.13,23.776884]
[1732624763206,43.01112026,228.2,228.13,23.776884]
[1732624763613,47.39312026,228.21,228.14,43.01112026]
[1732624763808,43.01112026,228.22,228.16,23.776884]
[1732624764211,16.4811,228.29,228.18,66.78800426]
[1732624764212,43.01112026,228.25,228.18,66.78800426]
[1732624764413,43.01112026,228.24,228.18,23.776884]
[1732624764613,43.01112026,228.25,228.18,23.776884]
[1732624765301,47.39212026,228.26,228.18,66.78800426]
[1732624765502,43.01112026,228.24,228.18,66.78800426]
[1732624766909,43.01112026,228.26,228.18,71.17040426]
[1732624767325,43.01112026,228.29,228.22,43.01112026]
[1732624767527,47.39132026,228.3,228.24,23.776884]
[1732624768622,43.01112026,228.27,228.19,43.01112026]
[1732624768922,43.01112026,228.28,228.23,23.776884]
[1732624769705,4.3802,228.3,228.23,23.776884]
[1732624769706,43.01112026,228.29,228.23,23.776884]
[1732624770107,47.39152026,228.29,228.23,23.776884]
[1732624770309,47.39152026,228.29,228.22,23.776884]
[1732624770630,43.01112026,228.25,228.18,43.01112026]
[1732624770818,43.01112026,228.25,228.16,4.3828]
[1732624770819,43.01112026,228.23,228.17,23.776884]
[1732624771321,43.01112026,228.24,228.17,66.78800426]
[1732624771521,4.3804,228.29,228.12,43.01112026]
[1732624771522,43.01112026,228.2,228.12,43.01112026]
[1732624771835,43.01112026,228.25,228.01,60.55749726]
[1732624771836,43.01112026,228.13,228.01,60.55749726]
[1732624772016,4.3836,228.13,228.01,17.546377]
[1732624772328,20.0,228.1,227.94,43.01112026]
[1732624772629,20.0,228.06,227.9,4.3878]
[1732624773030,156.4,228.06,227.86,4.3886]
[1732624773238,136.4,228.05,227.86,4.3886]
[1732624773526,43.01112026,227.99,227.91,43.01112026]
[1732624773727,43.01112026,228.01,227.93,43.01112026]
[1732624773936,43.01112026,227.99,227.91,43.01112026]
[1732624774430,43.01112026,227.99,227.94,23.776884]
[1732624774612,43.01112026,227.99,227.91,43.01112026]
[1732624775531,43.01112026,227.95,227.87,43.01112026]
[1732624775732,43.01112026,227.9,227.82,43.01112026]
[1732624775914,43.01112026,227.88,227.8,43.01112026]
[1732624776229,43.01112026,227.82,227.75,17.564831]
[1732624776409,43.01112026,227.92,227.72,4.3913]
[1732624776410,43.01112026,227.8,227.72,4.3913]
[1732624776616,43.01112026,227.8,227.71,43.01112026]
[1732624777123,43.01112026,227.8,227.73,43.01112026]
[1732624777304,43.01112026,227.78,227.69,43.01112026]
[1732624777533,43.01112026,227.76,227.69,43.01112026]
[1732624777711,43.01112026,227.8,227.71,43.01112026]
[1732624778036,47.40102026,227.8,227.71,43.01112026]
[1732624778215,43.01112026,227.74,227.67,43.01112026]
[1732624778412,43.01112026,227.78,227.69,43.01112026]
[1732624778612,43.01112026,227.78,227.64,4.3929]
[1732624778613,43.01112026,227.78,227.71,43.01112026]
[1732624778820,43.01112026,227.76,227.69,43.01112026]
[1732624779131,43.01112026,227.78,227.69,43.01112026]
[1732624779626,43.01112026,227.76,227.69,43.01112026]
[1732624780219,43.01112026,227.76,227.7,23.776884]
[1732624781538,43.01112026,227.72,227.61,43.01112026]
[1732624781738,43.01112026,227.68,227.61,43.01112026]
[1732624781916,43.01112026,227.68,227.59,47.40492026]
[1732624782238,43.01112026,227.7,227.63,43.01112026]
[1732624782444,43.01112026,227.72,227.65,43.01112026]
[1732624782774,43.01112026,227.74,227.65,43.01112026]
[1732624783316,43.01112026,227.74,227.66,23.776884]
[1732624783510,43.01112026,227.72,227.6,4.3935]
[1732624783707,43.01112026,227.68,227.59,43.01112026]
[1732624784011,43.01112026,227.62,227.55,43.01112026]
[1732624784826,43.01112026,227.64,227.55,43.01112026]
[1732624785212,43.01112026,227.69,227.61,43.01112026]
[1732624785413,136.4,227.72,227.61,43.01112026]
[1732624785414,43.01112026,227.67,227.61,43.01112026]
[1732624785725,43.01112026,227.68,227.6,43.01112026]
[1732624786228,43.01112026,227.69,227.64,23.776884]
[1732624786435,43.01112026,227.67,227.62,23.776884]
[1732624786629,43.01112026,227.63,227.55,47.40562026]
[1732624786827,43.01112026,227.61,227.53,43.01112026]
[1732624787030,43.01112026,227.59,227.51,47.92738136]
[1732624787511,43.01112026,227.61,227.53,43.01112026]
[1732624787712,43.01112026,227.62,227.54,43.01112026]
[1732624787920,43.01112026,227.58,227.51,0.5210611]
[1732624788333,43.01112026,227.6,227.53,43.01112026]
[1732624788721,43.01112026,227.62,227.53,43.01112026]
[1732624788918,4.3932,227.63,227.51,43.53218136]
[1732624789128,43.01112026,227.57,227.51,0.5210611]
[1732624789441,43.01112026,227.54,227.51,0.5210611]
[1732624789619,4.3943,227.57,227.51,0.5210611]
[1732624789620,43.01112026,227.56,227.51,0.5210611]
[1732624791138,43.01112026,227.58,227.51,43.53218136]
[1732624791319,43.01112026,227.6,227.53,23.776884]
[1732624791715,4.3932,227.62,227.53,23.776884]
[1732624791716,43.01112026,227.59,227.53,23.776884]
[1732624791920,43.01112026,227.56,227.51,0.5210611]
[1732624793322,43.01112026,227.54,227.51,0.5210611]
[1732624793646,43.01112026,227.52,227.51,0.5210611]
[1732624794015,43.01112026,227.53,227.51,0.5210611]
[1732624794647,43.01112026,227.54,227.51,0.5210611]
[1732624795319,43.01112026,227.56,227.51,0.5210611]
[1732624796038,43.01112026,227.61,227.53,43.01112026]
[1732624796340,142.6324,227.67,227.51,24.2979451]
[1732624796341,43.01112026,227.62,227.55,66.78800426]
[1732624796523,43.01112026,227.6,227.53,23.776884]
[1732624796725,43.01112026,227.54,227.51,0.5210611]
[1732624796926,43.01112026,227.52,227.51,0.5210611]
[1732624797434,47.40632026,227.52,227.51,0.5210611]
[1732624798423,26.55547122,227.52,227.51,0.5210611]
[1732624799051,26.55547122,227.54,227.51,0.5210611]
[1732624799423,26.55547122,227.56,227.51,0.5210611]
[1732624801146,4.3927,227.65,227.56,23.776884]
[1732624801352,26.55547122,227.68,227.61,26.55547122]
[1732624801557,4.3915,227.71,227.63,23.776884]
[1732624801738,26.55547122,227.68,227.63,23.776884]
[1732624801940,26.55547122,227.68,227.62,23.776884]
[1732624802251,26.55547122,227.73,227.67,23.776884]
[1732624802453,26.55547122,227.74,227.67,23.776884]
[1732624802663,43.57521327,227.78,227.71,26.55547122]
[1732624802825,26.55547122,227.74,227.67,23.776884]
[1732624803026,5.0,227.75,227.58,23.776884]
[1732624803354,10.0,227.73,227.58,23.776884]
[1732624803545,10.0,227.7,227.53,23.776884]
[1732624803848,20.0,227.67,227.52,23.776884]
[1732624804151,26.55547122,227.58,227.52,23.776884]
[1732624804346,43.12629343,227.58,227.52,23.776884]
[1732624804552,43.12629343,227.59,227.51,48.04255453]
[1732624804850,43.12629343,227.62,227.51,4.9162611]
[1732624805051,4.3921,227.68,227.51,4.9162611]
[1732624805441,43.12629343,227.61,227.53,43.12629343]
[1732624805746,140.7921,227.68,227.55,23.776884]
[1732624805952,43.12629343,227.63,227.52,23.776884]
[1732624806246,43.12629343,227.69,227.53,0.25098]
[1732624806453,43.12629343,227.71,227.64,43.12629343]
[1732624806629,12.63168658,227.72,227.66,43.12629343]
[1732624806831,43.12629343,227.71,227.65,23.776884]
[1732624807049,43.12629343,227.7,227.65,23.776884]
[1732624807258,55.75798001,227.72,227.65,23.776884]